[Event "Titled Tuesday Blitz May 2 Late 2023"]
[White "Kosakowski, Jakub"]
[Black "Kourkoulos-Arditis, Stamatis"]
[WhiteFideId "1185080"]
[BlackFideId "4221990"]
[WhiteElo "2488"]
[BlackElo "2400"]
[Result "1/2-1/2"]
[Round "02"]
[TimeControl "180+2"]
[Date "2023.05.02"]
[WhiteClock "0:00:08"]
[BlackClock "0:00:10"]

1. e4 {[%clk 0:02:58]}  Nf6 {[%clk 0:02:58]} 2. e5 {[%clk 0:02:57]}  Nd5 {[%clk 0:02:58]} 3. d4 {[%clk 0:02:57]}  d6 {[%clk 0:02:58]} 4. Nf3 {[%clk 0:02:56]}  g6 {[%clk 0:02:57]} 5. h3 {[%clk 0:02:54]}  Bg7 {[%clk 0:02:57]} 6. Bc4 {[%clk 0:02:52]}  Nb6 {[%clk 0:02:57]} 7. Bb3 {[%clk 0:02:52]}  dxe5 {[%clk 0:02:56]} 8. Nxe5 {[%clk 0:02:49]}  Bxe5 {[%clk 0:02:56]} 9. dxe5 {[%clk 0:02:50]}  Qxd1+ {[%clk 0:02:56]} 10. Kxd1 {[%clk 0:02:51]}  Nc6 {[%clk 0:02:57]} 11. Bf4 {[%clk 0:02:47]}  Bf5 {[%clk 0:02:51]} 12. Nd2 {[%clk 0:02:43]}  Nd4 {[%clk 0:02:46]} 13. c3 {[%clk 0:02:38]}  Nxb3 {[%clk 0:02:38]} 14. axb3 {[%clk 0:02:38]}  a6 {[%clk 0:02:38]} 15. Ke2 {[%clk 0:02:28]}  O-O-O {[%clk 0:02:38]} 16. Rhd1 {[%clk 0:02:24]}  Bc2 {[%clk 0:02:36]} 17. Rdc1 {[%clk 0:02:22]}  Bd3+ {[%clk 0:02:37]} 18. Ke1 {[%clk 0:02:22]}  Nd5 {[%clk 0:02:30]} 19. Bg3 {[%clk 0:02:22]}  f5 {[%clk 0:02:24]} 20. Nf3 {[%clk 0:02:14]}  f4 {[%clk 0:02:21]} 21. Bh2 {[%clk 0:02:12]}  h6 {[%clk 0:02:15]} 22. Nd4 {[%clk 0:02:06]}  g5 {[%clk 0:02:13]} 23. Rd1 {[%clk 0:02:03]}  Bg6 {[%clk 0:02:10]} 24. Ne6 {[%clk 0:02:02]}  Rd7 {[%clk 0:02:06]} 25. Nc5 {[%clk 0:02:03]}  Rdd8 {[%clk 0:02:02]} 26. Ne6 {[%clk 0:02:02]}  Rd7 {[%clk 0:01:59]} 27. Nc5 {[%clk 0:02:02]}  Rdd8 {[%clk 0:01:46]} 28. Rd4 {[%clk 0:02:02]}  Nb6 {[%clk 0:01:35]} 29. Rad1 {[%clk 0:02:02]}  Rxd4 {[%clk 0:01:34]} 30. Rxd4 {[%clk 0:02:02]}  Bf5 {[%clk 0:01:31]} 31. h4 {[%clk 0:01:36]}  Nd7 {[%clk 0:01:31]} 32. Nxd7 {[%clk 0:01:27]}  Bxd7 {[%clk 0:01:32]} 33. g3 {[%clk 0:01:28]}  f3 {[%clk 0:01:31]} 34. g4 {[%clk 0:01:08]}  gxh4 {[%clk 0:01:32]} 35. Rf4 {[%clk 0:01:06]}  Bc6 {[%clk 0:01:29]} 36. Rf5 {[%clk 0:01:00]}  Kd7 {[%clk 0:01:23]} 37. Rh5 {[%clk 0:00:56]}  Rg8 {[%clk 0:01:23]} 38. Rxh4 {[%clk 0:00:56]}  Rg6 {[%clk 0:01:11]} 39. Bf4 {[%clk 0:00:51]}  Ke6 {[%clk 0:01:11]} 40. Bxh6 {[%clk 0:00:40]}  Kxe5 {[%clk 0:01:10]} 41. Be3 {[%clk 0:00:41]}  Ke4 {[%clk 0:01:06]} 42. Kd2 {[%clk 0:00:35]}  Rd6+ {[%clk 0:01:06]} 43. Kc2 {[%clk 0:00:35]}  Rg6 {[%clk 0:00:58]} 44. Rh7 {[%clk 0:00:35]}  Rxg4 {[%clk 0:00:35]} 45. Rxe7+ {[%clk 0:00:33]}  Kd5 {[%clk 0:00:35]} 46. Rxc7 {[%clk 0:00:33]}  Kd6 {[%clk 0:00:35]} 47. Rf7 {[%clk 0:00:29]}  Rg1 {[%clk 0:00:33]} 48. c4 {[%clk 0:00:27]}  Re1 {[%clk 0:00:30]} 49. Kc3 {[%clk 0:00:26]}  Re2 {[%clk 0:00:28]} 50. b4 {[%clk 0:00:26]}  Ke5 {[%clk 0:00:25]} 51. Bd4+ {[%clk 0:00:16]}  Ke6 {[%clk 0:00:24]} 52. Rf6+ {[%clk 0:00:16]}  Ke7 {[%clk 0:00:23]} 53. Rh6 {[%clk 0:00:17]}  Kd7 {[%clk 0:00:22]} 54. Be3 {[%clk 0:00:15]}  Ke7 {[%clk 0:00:20]} 55. b3 {[%clk 0:00:15]}  Rxe3+ {[%clk 0:00:19]} 56. fxe3 {[%clk 0:00:13]}  f2 {[%clk 0:00:20]} 57. Rh7+ {[%clk 0:00:13]}  Kf6 {[%clk 0:00:17]} 58. Rh4 {[%clk 0:00:11]}  f1=Q {[%clk 0:00:16]} 59. Rf4+ {[%clk 0:00:11]}  Qxf4 {[%clk 0:00:16]} 60. exf4 {[%clk 0:00:11]}  b5 {[%clk 0:00:16]} 61. Kd4 {[%clk 0:00:10]}  Kf5 {[%clk 0:00:10]} 62. Kc5 {[%clk 0:00:10]}  Be8 {[%clk 0:00:10]} 63. Kb6 {[%clk 0:00:10]}  Bf7 {[%clk 0:00:08]} 64. cxb5 {[%clk 0:00:07]}  axb5 {[%clk 0:00:08]} 65. Kxb5 {[%clk 0:00:07]}  Bxb3 {[%clk 0:00:09]} 66. Kc5 {[%clk 0:00:07]}  Ba4 {[%clk 0:00:09]} 67. b5 {[%clk 0:00:07]}  Bxb5 {[%clk 0:00:10]} 68. Kxb5 {[%clk 0:00:08]}  Kxf4 {[%clk 0:00:10]} 1/2-1/2


[Site "https://www.chess.com"]

[Event "Titled Tuesday Blitz May 2 Late 2023"]
[White "Djordjevic, Vuk"]
[Black "Mordechai, Hanan"]
[WhiteFideId "902098"]
[BlackFideId "2804166"]
[WhiteElo "2452"]
[BlackElo "2324"]
[Result "1-0"]
[Round "02"]
[TimeControl "180+2"]
[Date "2023.05.02"]
[WhiteClock "0:00:07"]
[BlackClock "0:00:03"]

1. d4 {[%clk 0:03:00]}  Nf6 {[%clk 0:02:58]} 2. Bg5 {[%clk 0:03:01]}  d5 {[%clk 0:02:56]} 3. Bxf6 {[%clk 0:03:00]}  gxf6 {[%clk 0:02:57]} 4. e3 {[%clk 0:03:00]}  e6 {[%clk 0:02:54]} 5. c4 {[%clk 0:03:00]}  c6 {[%clk 0:02:50]} 6. Nc3 {[%clk 0:02:59]}  Bd6 {[%clk 0:02:46]} 7. Nf3 {[%clk 0:02:58]}  a6 {[%clk 0:02:42]} 8. Qc2 {[%clk 0:02:57]}  Nd7 {[%clk 0:02:41]} 9. Bd3 {[%clk 0:02:49]}  f5 {[%clk 0:02:33]} 10. O-O {[%clk 0:02:49]}  Rg8 {[%clk 0:02:25]} 11. c5 {[%clk 0:02:39]}  Bc7 {[%clk 0:02:22]} 12. b4 {[%clk 0:02:39]}  Qf6 {[%clk 0:01:52]} 13. a4 {[%clk 0:02:35]}  Qg6 {[%clk 0:01:47]} 14. g3 {[%clk 0:02:35]}  Nf6 {[%clk 0:01:47]} 15. b5 {[%clk 0:02:30]}  Qh5 {[%clk 0:01:38]} 16. Be2 {[%clk 0:02:19]}  Qh3 {[%clk 0:01:37]} 17. Ne1 {[%clk 0:02:02]}  Rg6 {[%clk 0:01:25]} 18. f4 {[%clk 0:01:57]}  Ng4 {[%clk 0:01:00]} 19. Bxg4 {[%clk 0:01:47]}  Rxg4 {[%clk 0:00:57]} 20. Nf3 {[%clk 0:01:43]}  Bd7 {[%clk 0:00:55]} 21. Rab1 {[%clk 0:01:37]}  axb5 {[%clk 0:00:36]} 22. axb5 {[%clk 0:01:37]}  Ke7 {[%clk 0:00:27]} 23. bxc6 {[%clk 0:01:34]}  Rag8 {[%clk 0:00:25]} 24. Ne2 {[%clk 0:00:38]}  Bxc6 {[%clk 0:00:25]} 25. Ne5 {[%clk 0:00:28]}  Bxe5 {[%clk 0:00:23]} 26. fxe5 {[%clk 0:00:29]}  h5 {[%clk 0:00:18]} 27. Kh1 {[%clk 0:00:25]}  Re4 {[%clk 0:00:13]} 28. Ng1 {[%clk 0:00:23]}  Qg4 {[%clk 0:00:14]} 29. Rf3 {[%clk 0:00:20]}  Qg5 {[%clk 0:00:13]} 30. Qf2 {[%clk 0:00:19]}  h4 {[%clk 0:00:14]} 31. gxh4 {[%clk 0:00:19]}  Rxh4 {[%clk 0:00:14]} 32. Nh3 {[%clk 0:00:16]}  Qh6 {[%clk 0:00:13]} 33. Nf4 {[%clk 0:00:16]}  Rh8 {[%clk 0:00:14]} 34. h3 {[%clk 0:00:16]}  Rg8 {[%clk 0:00:11]} 35. Kh2 {[%clk 0:00:16]}  Rhg4 {[%clk 0:00:12]} 36. Ra1 {[%clk 0:00:13]}  Kd7 {[%clk 0:00:12]} 37. Kh1 {[%clk 0:00:11]}  Kc7 {[%clk 0:00:12]} 38. Qh2 {[%clk 0:00:12]}  Rh4 {[%clk 0:00:10]} 39. Rg3 {[%clk 0:00:11]}  Rh8 {[%clk 0:00:10]} 40. Rag1 {[%clk 0:00:11]}  Rh7 {[%clk 0:00:09]} 41. Qg2 {[%clk 0:00:11]}  Bb5 {[%clk 0:00:09]} 42. Qb2 {[%clk 0:00:09]}  Bc6 {[%clk 0:00:07]} 43. Qb6+ {[%clk 0:00:09]}  Kd7 {[%clk 0:00:08]} 44. Kh2 {[%clk 0:00:09]}  Rxf4 {[%clk 0:00:07]} 45. exf4 {[%clk 0:00:09]}  Qxf4 {[%clk 0:00:08]} 46. Qb2 {[%clk 0:00:09]}  Qh4 {[%clk 0:00:07]} 47. Qf2 {[%clk 0:00:07]}  Bb5 {[%clk 0:00:05]} 48. Rf3 {[%clk 0:00:07]}  Bc4 {[%clk 0:00:05]} 49. Qxh4 {[%clk 0:00:07]}  Rxh4 {[%clk 0:00:05]} 50. Rb1 {[%clk 0:00:05]}  Kc7 {[%clk 0:00:05]} 51. Rg3 {[%clk 0:00:05]}  Rxd4 {[%clk 0:00:05]} 52. Rg7 {[%clk 0:00:06]}  Kc6 {[%clk 0:00:05]} 53. Rxf7 {[%clk 0:00:06]}  Re4 {[%clk 0:00:03]} 54. Rbxb7 {[%clk 0:00:03]}  Kxc5 {[%clk 0:00:04]} 55. h4 {[%clk 0:00:03]}  Rxe5 {[%clk 0:00:04]} 56. h5 {[%clk 0:00:04]}  f4 {[%clk 0:00:04]} 57. Rh7 {[%clk 0:00:03]}  f3 {[%clk 0:00:05]} 58. Kg3 {[%clk 0:00:04]}  Be2 {[%clk 0:00:05]} 59. Rbf7 {[%clk 0:00:04]}  Rg5+ {[%clk 0:00:05]} 60. Kf4 {[%clk 0:00:04]}  Rg2 {[%clk 0:00:04]} 61. Ke3 {[%clk 0:00:05]}  Bd1 {[%clk 0:00:04]} 62. h6 {[%clk 0:00:05]}  d4+ {[%clk 0:00:04]} 63. Ke4 {[%clk 0:00:05]}  f2 {[%clk 0:00:04]} 64. Rh8 {[%clk 0:00:05]}  Bc2+ {[%clk 0:00:05]} 65. Ke5 {[%clk 0:00:05]}  Bd3 {[%clk 0:00:02]} 66. Rhf8 {[%clk 0:00:04]}  Rh2 {[%clk 0:00:02]} 67. Rxf2 {[%clk 0:00:05]}  Rxh6 {[%clk 0:00:02]} 68. Rc8+ {[%clk 0:00:05]}  Kb4 {[%clk 0:00:03]} 69. Kxd4 {[%clk 0:00:05]}  Bb5 {[%clk 0:00:03]} 70. Rb2+ {[%clk 0:00:05]}  Ka3 {[%clk 0:00:02]} 71. Rxb5 {[%clk 0:00:05]}  Rh4+ {[%clk 0:00:03]} 72. Kc5 {[%clk 0:00:06]}  Rh5+ {[%clk 0:00:03]} 73. Kb6 {[%clk 0:00:06]}  Rh4 {[%clk 0:00:02]} 74. Ra8+ {[%clk 0:00:06]}  Ra4 {[%clk 0:00:03]} 75. Rxa4+ {[%clk 0:00:07]} 1-0


[Site "https://www.chess.com"]

[Event "Titled Tuesday Blitz May 2 Late 2023"]
[White "Flores, Diego"]
[Black "Karamsetty, Jeevan"]
[WhiteFideId "108049"]
[BlackFideId "2025337"]
[WhiteElo "2613"]
[BlackElo "2111"]
[Result "1-0"]
[Round "02"]
[TimeControl "180+2"]
[Date "2023.05.02"]
[WhiteClock "0:00:15"]
[BlackClock "0:00:06"]

1. c4 {[%clk 0:03:00]}  g6 {[%clk 0:03:00]} 2. Nc3 {[%clk 0:02:59]}  Bg7 {[%clk 0:03:00]} 3. g3 {[%clk 0:02:59]}  d6 {[%clk 0:02:59]} 4. Bg2 {[%clk 0:03:00]}  Nc6 {[%clk 0:02:57]} 5. d3 {[%clk 0:02:52]}  Bd7 {[%clk 0:02:56]} 6. e4 {[%clk 0:02:52]}  Qc8 {[%clk 0:02:50]} 7. Be3 {[%clk 0:02:51]}  Nf6 {[%clk 0:02:47]} 8. h3 {[%clk 0:02:48]}  e5 {[%clk 0:02:43]} 9. Nge2 {[%clk 0:02:48]}  O-O {[%clk 0:02:41]} 10. Qd2 {[%clk 0:02:48]}  a6 {[%clk 0:02:36]} 11. O-O {[%clk 0:02:47]}  Bxh3 {[%clk 0:02:34]} 12. f3 {[%clk 0:02:42]}  h5 {[%clk 0:02:10]} 13. Nd5 {[%clk 0:02:40]}  Bxg2 {[%clk 0:02:05]} 14. Kxg2 {[%clk 0:02:40]}  Nxd5 {[%clk 0:02:05]} 15. cxd5 {[%clk 0:02:41]}  Ne7 {[%clk 0:02:05]} 16. Rac1 {[%clk 0:02:41]}  Qd7 {[%clk 0:02:05]} 17. d4 {[%clk 0:02:39]}  f5 {[%clk 0:01:46]} 18. dxe5 {[%clk 0:02:37]}  dxe5 {[%clk 0:01:38]} 19. Bg5 {[%clk 0:02:23]}  Rf7 {[%clk 0:01:26]} 20. Qb4 {[%clk 0:02:14]}  Re8 {[%clk 0:01:03]} 21. Qxb7 {[%clk 0:02:07]}  fxe4 {[%clk 0:01:00]} 22. fxe4 {[%clk 0:02:00]}  Qg4 {[%clk 0:00:52]} 23. Rxf7 {[%clk 0:01:58]}  Kxf7 {[%clk 0:00:50]} 24. Qxa6 {[%clk 0:00:57]}  Qxg5 {[%clk 0:00:50]} 25. Qe6+ {[%clk 0:00:57]}  Kf8 {[%clk 0:00:50]} 26. Rf1+ {[%clk 0:00:56]}  Nf5 {[%clk 0:00:49]} 27. Qa6 {[%clk 0:00:49]}  Qg4 {[%clk 0:00:20]} 28. Qd3 {[%clk 0:00:43]}  Kg8 {[%clk 0:00:16]} 29. exf5 {[%clk 0:00:43]}  e4 {[%clk 0:00:16]} 30. Qc4 {[%clk 0:00:43]}  gxf5 {[%clk 0:00:13]} 31. d6+ {[%clk 0:00:44]}  Kh7 {[%clk 0:00:13]} 32. dxc7 {[%clk 0:00:42]}  Rc8 {[%clk 0:00:11]} 33. Rf4 {[%clk 0:00:40]}  Qg6 {[%clk 0:00:06]} 34. Qc5 {[%clk 0:00:34]}  Bh6 {[%clk 0:00:04]} 35. Rxf5 {[%clk 0:00:34]}  Qg7 {[%clk 0:00:02]} 36. Rxh5 {[%clk 0:00:15]}  Rxc7 {[%clk 0:00:03]} 37. Qf5+ {[%clk 0:00:15]}  Qg6 {[%clk 0:00:03]} 38. Rxh6+ {[%clk 0:00:13]}  Kxh6 {[%clk 0:00:03]} 39. Qf4+ {[%clk 0:00:14]}  Qg5 {[%clk 0:00:02]} 40. Qxc7 {[%clk 0:00:14]}  Kh5 {[%clk 0:00:03]} 41. Qf4 {[%clk 0:00:14]}  Qb5 {[%clk 0:00:02]} 42. Qxe4 {[%clk 0:00:13]}  Kg5 {[%clk 0:00:02]} 43. Qf4+ {[%clk 0:00:13]}  Kh5 {[%clk 0:00:02]} 44. Qf3+ {[%clk 0:00:14]}  Kg5 {[%clk 0:00:03]} 45. b3 {[%clk 0:00:15]}  Qe5 {[%clk 0:00:03]} 46. a4 {[%clk 0:00:15]}  Qb2 {[%clk 0:00:02]} 47. Qf4+ {[%clk 0:00:15]}  Kh5 {[%clk 0:00:03]} 48. Qf3+ {[%clk 0:00:15]}  Kg6 {[%clk 0:00:04]} 49. g4 {[%clk 0:00:16]}  Qa1 {[%clk 0:00:04]} 50. Qf5+ {[%clk 0:00:16]}  Kg7 {[%clk 0:00:05]} 51. a5 {[%clk 0:00:16]}  Qa2 {[%clk 0:00:05]} 52. Kf3 {[%clk 0:00:16]}  Qxb3+ {[%clk 0:00:05]} 53. Kg2 {[%clk 0:00:16]}  Qa2 {[%clk 0:00:06]} 54. Qe5+ {[%clk 0:00:16]}  Kg6 {[%clk 0:00:06]} 55. Kg3 {[%clk 0:00:15]}  Qa3+ {[%clk 0:00:06]} 56. Kh4 {[%clk 0:00:15]}  Kh7 {[%clk 0:00:06]} 57. Nf4 {[%clk 0:00:15]}  Qc1 {[%clk 0:00:06]} 58. Qe7+ {[%clk 0:00:15]}  Kg8 {[%clk 0:00:05]} 59. Qe6+ {[%clk 0:00:15]}  Kh7 {[%clk 0:00:05]} 60. Qf7+ {[%clk 0:00:15]}  Kh6 {[%clk 0:00:06]} 61. Qg6# {[%clk 0:00:15]} 1-0


[Site "https://www.chess.com"]

[Event "Titled Tuesday Blitz May 2 Late 2023"]
[White "Kavutskiy, Konstantin"]
[Black "Sieciechowicz, Marcin"]
[WhiteFideId "2026384"]
[BlackFideId "1130170"]
[WhiteElo "2323"]
[BlackElo "2302"]
[Result "0-1"]
[Round "02"]
[TimeControl "180+2"]
[Date "2023.05.02"]
[WhiteClock "0:00:04"]
[BlackClock "0:00:05"]

1. d4 {[%clk 0:03:00]}  Nf6 {[%clk 0:03:00]} 2. Bg5 {[%clk 0:02:59]}  g6 {[%clk 0:02:59]} 3. Bxf6 {[%clk 0:02:58]}  exf6 {[%clk 0:03:00]} 4. c4 {[%clk 0:02:58]}  Bg7 {[%clk 0:02:58]} 5. Nc3 {[%clk 0:02:58]}  O-O {[%clk 0:02:58]} 6. g3 {[%clk 0:02:59]}  f5 {[%clk 0:02:58]} 7. Bg2 {[%clk 0:02:59]}  Nc6 {[%clk 0:02:58]} 8. e3 {[%clk 0:02:59]}  d6 {[%clk 0:02:59]} 9. Nge2 {[%clk 0:03:00]}  Bd7 {[%clk 0:02:59]} 10. O-O {[%clk 0:02:59]}  a6 {[%clk 0:02:59]} 11. Rb1 {[%clk 0:02:58]}  h5 {[%clk 0:02:58]} 12. h4 {[%clk 0:02:53]}  Rb8 {[%clk 0:02:58]} 13. b4 {[%clk 0:02:53]}  Ne7 {[%clk 0:02:58]} 14. a4 {[%clk 0:02:50]}  b6 {[%clk 0:02:56]} 15. b5 {[%clk 0:02:46]}  a5 {[%clk 0:02:55]} 16. Nf4 {[%clk 0:02:34]}  Kh7 {[%clk 0:02:55]} 17. Ncd5 {[%clk 0:02:21]}  Nxd5 {[%clk 0:02:55]} 18. cxd5 {[%clk 0:02:18]}  Bh6 {[%clk 0:02:44]} 19. Rc1 {[%clk 0:02:10]}  Bxf4 {[%clk 0:02:43]} 20. exf4 {[%clk 0:02:10]}  Rc8 {[%clk 0:02:43]} 21. Rc4 {[%clk 0:02:04]}  Re8 {[%clk 0:02:42]} 22. Qc2 {[%clk 0:02:03]}  Qf6 {[%clk 0:02:26]} 23. Qc3 {[%clk 0:01:50]}  Re7 {[%clk 0:02:24]} 24. Rc1 {[%clk 0:01:47]}  Be8 {[%clk 0:02:20]} 25. Qd3 {[%clk 0:01:44]}  Kg7 {[%clk 0:02:19]} 26. Bf3 {[%clk 0:01:43]}  Kh7 {[%clk 0:02:17]} 27. Kg2 {[%clk 0:01:43]}  Kg7 {[%clk 0:02:17]} 28. R1c3 {[%clk 0:01:42]}  Rd7 {[%clk 0:02:11]} 29. Qc2 {[%clk 0:01:42]}  Rcd8 {[%clk 0:01:40]} 30. Qd3 {[%clk 0:01:36]}  Qe7 {[%clk 0:01:26]} 31. Rc6 {[%clk 0:01:29]}  Rb8 {[%clk 0:01:17]} 32. R3c4 {[%clk 0:01:25]}  Rb7 {[%clk 0:01:12]} 33. Rc2 {[%clk 0:01:05]}  f6 {[%clk 0:01:12]} 34. Re2 {[%clk 0:01:02]}  Qd8 {[%clk 0:01:12]} 35. Rc1 {[%clk 0:00:56]}  Bf7 {[%clk 0:01:12]} 36. Rce1 {[%clk 0:00:56]}  Rb8 {[%clk 0:00:57]} 37. Re3 {[%clk 0:00:46]}  Qg8 {[%clk 0:00:55]} 38. R1e2 {[%clk 0:00:42]}  Bxd5 {[%clk 0:00:44]} 39. Re7+ {[%clk 0:00:38]}  Rxe7 {[%clk 0:00:44]} 40. Rxe7+ {[%clk 0:00:38]}  Kh6 {[%clk 0:00:45]} 41. Rxc7 {[%clk 0:00:32]}  Re8 {[%clk 0:00:45]} 42. Bxd5 {[%clk 0:00:15]}  Qxd5+ {[%clk 0:00:45]} 43. Qf3 {[%clk 0:00:16]}  Re4 {[%clk 0:00:28]} 44. Rc6 {[%clk 0:00:12]}  Qxd4 {[%clk 0:00:28]} 45. Qb3 {[%clk 0:00:06]}  Re2 {[%clk 0:00:23]} 46. Qf3 {[%clk 0:00:06]}  Ra2 {[%clk 0:00:18]} 47. Rc8 {[%clk 0:00:05]}  Rxa4 {[%clk 0:00:15]} 48. Rh8+ {[%clk 0:00:03]}  Kg7 {[%clk 0:00:15]} 49. Rb8 {[%clk 0:00:04]}  Qe4 {[%clk 0:00:09]} 50. Rxb6 {[%clk 0:00:04]}  d5 {[%clk 0:00:08]} 51. Rb7+ {[%clk 0:00:03]}  Kh6 {[%clk 0:00:07]} 52. b6 {[%clk 0:00:04]}  Rb4 {[%clk 0:00:07]} 53. Rb8 {[%clk 0:00:04]}  a4 {[%clk 0:00:06]} 54. Ra8 {[%clk 0:00:03]}  Rxb6 {[%clk 0:00:05]} 55. Qxe4 {[%clk 0:00:03]}  fxe4 {[%clk 0:00:05]} 56. Rxa4 {[%clk 0:00:04]}  Rd6 {[%clk 0:00:05]} 57. Rd4 {[%clk 0:00:04]}  Kg7 {[%clk 0:00:04]} 58. f5 {[%clk 0:00:03]}  gxf5 {[%clk 0:00:04]} 59. Kf1 {[%clk 0:00:04]}  Kf7 {[%clk 0:00:04]} 60. Ke2 {[%clk 0:00:04]}  Ke6 {[%clk 0:00:05]} 61. Ke3 {[%clk 0:00:05]}  Ra6 {[%clk 0:00:05]} 62. Kf4 {[%clk 0:00:04]}  Ra3 {[%clk 0:00:05]} 0-1


[Site "https://www.chess.com"]

[Event "Titled Tuesday Blitz May 2 Late 2023"]
[White "Makridis, Dimitrios"]
[Black "Ozates, Tuna"]
[WhiteFideId "25864475"]
[BlackFideId "6354521"]
[WhiteElo "2277"]
[BlackElo "2151"]
[Result "1/2-1/2"]
[Round "02"]
[TimeControl "180+2"]
[Date "2023.05.02"]
[WhiteClock "0:00:12"]
[BlackClock "0:00:09"]

1. e4 {[%clk 0:02:58]}  e5 {[%clk 0:02:56]} 2. d4 {[%clk 0:02:57]}  exd4 {[%clk 0:02:56]} 3. c3 {[%clk 0:02:57]}  d3 {[%clk 0:02:52]} 4. Bxd3 {[%clk 0:02:56]}  Nc6 {[%clk 0:02:52]} 5. f4 {[%clk 0:02:55]}  Bc5 {[%clk 0:02:51]} 6. Nf3 {[%clk 0:02:55]}  Nf6 {[%clk 0:02:50]} 7. e5 {[%clk 0:02:55]}  Ng4 {[%clk 0:02:48]} 8. Qe2 {[%clk 0:02:41]}  Nf2 {[%clk 0:02:38]} 9. Rf1 {[%clk 0:02:39]}  Nxd3+ {[%clk 0:02:38]} 10. Qxd3 {[%clk 0:02:40]}  O-O {[%clk 0:02:38]} 11. Ng5 {[%clk 0:02:37]}  g6 {[%clk 0:02:35]} 12. Be3 {[%clk 0:02:37]}  Bxe3 {[%clk 0:02:31]} 13. Qxe3 {[%clk 0:02:38]}  f6 {[%clk 0:02:26]} 14. exf6 {[%clk 0:02:28]}  Qxf6 {[%clk 0:02:26]} 15. Nd2 {[%clk 0:02:27]}  d5 {[%clk 0:02:19]} 16. O-O-O {[%clk 0:02:27]}  d4 {[%clk 0:02:19]} 17. cxd4 {[%clk 0:02:27]}  Nxd4 {[%clk 0:02:20]} 18. Nde4 {[%clk 0:02:11]}  Qc6+ {[%clk 0:02:19]} 19. Kb1 {[%clk 0:02:10]}  Nf5 {[%clk 0:01:49]} 20. Qb3+ {[%clk 0:02:09]}  Kg7 {[%clk 0:01:46]} 21. Rc1 {[%clk 0:02:09]}  Qd7 {[%clk 0:01:23]} 22. Qc3+ {[%clk 0:02:04]}  Kg8 {[%clk 0:01:10]} 23. Nf6+ {[%clk 0:02:02]}  Rxf6 {[%clk 0:01:08]} 24. Qxf6 {[%clk 0:02:03]}  Ne3 {[%clk 0:01:04]} 25. Rf2 {[%clk 0:01:14]}  Ng4 {[%clk 0:00:47]} 26. Qc3 {[%clk 0:00:21]}  Nxf2 {[%clk 0:00:44]} 27. Ka1 {[%clk 0:00:21]}  c6 {[%clk 0:00:20]} 28. h3 {[%clk 0:00:21]}  Qd5 {[%clk 0:00:15]} 29. Qf6 {[%clk 0:00:18]}  Bf5 {[%clk 0:00:12]} 30. g4 {[%clk 0:00:16]}  Rf8 {[%clk 0:00:12]} 31. Qe7 {[%clk 0:00:15]}  Qd7 {[%clk 0:00:13]} 32. Qe3 {[%clk 0:00:13]}  Nd3 {[%clk 0:00:11]} 33. Rd1 {[%clk 0:00:14]}  Re8 {[%clk 0:00:10]} 34. Qd2 {[%clk 0:00:14]}  Be4 {[%clk 0:00:07]} 35. a3 {[%clk 0:00:14]}  Qd4 {[%clk 0:00:04]} 36. Qe2 {[%clk 0:00:12]}  Qc4 {[%clk 0:00:02]} 37. Nxe4 {[%clk 0:00:11]}  Rxe4 {[%clk 0:00:03]} 38. Qxd3 {[%clk 0:00:11]}  Qxd3 {[%clk 0:00:04]} 39. Rxd3 {[%clk 0:00:12]}  Rxf4 {[%clk 0:00:04]} 40. Rd8+ {[%clk 0:00:12]}  Rf8 {[%clk 0:00:04]} 41. Rd7 {[%clk 0:00:12]}  Rf7 {[%clk 0:00:04]} 42. Rd6 {[%clk 0:00:13]}  Kg7 {[%clk 0:00:04]} 43. g5 {[%clk 0:00:13]}  Re7 {[%clk 0:00:05]} 44. h4 {[%clk 0:00:14]}  Rf7 {[%clk 0:00:05]} 45. b4 {[%clk 0:00:14]}  Rc7 {[%clk 0:00:06]} 46. Kb2 {[%clk 0:00:14]}  Rf7 {[%clk 0:00:06]} 47. Kc3 {[%clk 0:00:15]}  h6 {[%clk 0:00:07]} 48. Kc4 {[%clk 0:00:15]}  hxg5 {[%clk 0:00:07]} 49. hxg5 {[%clk 0:00:16]}  Rc7 {[%clk 0:00:07]} 50. a4 {[%clk 0:00:16]}  Rf7 {[%clk 0:00:08]} 51. Re6 {[%clk 0:00:15]}  Rd7 {[%clk 0:00:07]} 52. a5 {[%clk 0:00:15]}  Rf7 {[%clk 0:00:07]} 53. a6 {[%clk 0:00:15]}  bxa6 {[%clk 0:00:06]} 54. Rxc6 {[%clk 0:00:15]}  Rf4+ {[%clk 0:00:07]} 55. Kb3 {[%clk 0:00:15]}  Rf5 {[%clk 0:00:07]} 56. Rxa6 {[%clk 0:00:15]}  Rxg5 {[%clk 0:00:07]} 57. Rxa7+ {[%clk 0:00:15]}  Kh6 {[%clk 0:00:08]} 58. Kc4 {[%clk 0:00:15]}  Rg4+ {[%clk 0:00:08]} 59. Kc5 {[%clk 0:00:16]}  Rg5+ {[%clk 0:00:09]} 60. Kc6 {[%clk 0:00:17]}  Rg1 {[%clk 0:00:08]} 61. b5 {[%clk 0:00:17]}  Rc1+ {[%clk 0:00:09]} 62. Kb7 {[%clk 0:00:16]}  g5 {[%clk 0:00:08]} 63. Ra3 {[%clk 0:00:14]}  g4 {[%clk 0:00:09]} 64. b6 {[%clk 0:00:15]}  Kg5 {[%clk 0:00:08]} 65. Rb3 {[%clk 0:00:16]}  Re1 {[%clk 0:00:07]} 66. Kc6 {[%clk 0:00:15]}  Re8 {[%clk 0:00:07]} 67. b7 {[%clk 0:00:15]}  Kf4 {[%clk 0:00:07]} 68. b8=Q+ {[%clk 0:00:14]}  Rxb8 {[%clk 0:00:07]} 69. Rxb8 {[%clk 0:00:15]}  g3 {[%clk 0:00:08]} 70. Kd5 {[%clk 0:00:15]}  g2 {[%clk 0:00:08]} 71. Rg8 {[%clk 0:00:11]}  Kf3 {[%clk 0:00:08]} 72. Kd4 {[%clk 0:00:11]}  Kf2 {[%clk 0:00:08]} 73. Kd3 {[%clk 0:00:11]}  g1=Q {[%clk 0:00:08]} 74. Rxg1 {[%clk 0:00:12]}  Kxg1 {[%clk 0:00:09]} 1/2-1/2


[Site "https://www.chess.com"]